[Event "Early-Titled-Tuesday-Blitz-March-26-2024"]
[Site "Chess.com"]
[Date "2024.03.26"]
[Round "11"]
[White "vladgoncharov"]
[Black "UK_23"]
[Result "1-0"]
[WhiteElo "2585"]
[BlackElo "2399"]
[TimeControl "180+1"]
[EndTime "10:05:55 PDT"]
[Termination "vladgoncharov won by resignation"]

1. d4 {[%clk 0:03:00.9]} 1... d5 {[%clk 0:02:59]} 2. c4 {[%clk 0:02:59.1]} 2...
e6 {[%clk 0:02:54.7]} 3. Nc3 {[%clk 0:02:58.6]} 3... Nf6 {[%clk 0:02:55.4]} 4.
Bg5 {[%clk 0:02:58.3]} 4... Be7 {[%clk 0:02:55.3]} 5. e3 {[%clk 0:02:58.4]} 5...
h6 {[%clk 0:02:55.5]} 6. Bh4 {[%clk 0:02:58]} 6... O-O {[%clk 0:02:55.6]} 7. Rc1
{[%clk 0:02:57.5]} 7... b6 {[%clk 0:02:54.2]} 8. cxd5 {[%clk 0:02:53.6]} 8...
Nxd5 {[%clk 0:02:53.9]} 9. Bxe7 {[%clk 0:02:53.3]} 9... Qxe7 {[%clk 0:02:53.8]}
10. Nxd5 {[%clk 0:02:52.9]} 10... exd5 {[%clk 0:02:54.7]} 11. Nf3 {[%clk
0:02:51]} 11... c5 {[%clk 0:02:54.7]} 12. Qa4 {[%clk 0:02:38.1]} 12... Be6
{[%clk 0:02:54.4]} 13. Qa3 {[%clk 0:02:31.9]} 13... Rc8 {[%clk 0:02:52.1]} 14.
Be2 {[%clk 0:02:30.2]} 14... a5 {[%clk 0:02:48.4]} 15. O-O {[%clk 0:02:28.8]}
15... Qa7 {[%clk 0:02:48.1]} 16. dxc5 {[%clk 0:02:23.1]} 16... bxc5 {[%clk
0:02:48.1]} 17. Ne5 {[%clk 0:02:17]} 17... Nc6 {[%clk 0:02:36.1]} 18. Nd3 {[%clk
0:02:01.1]} 18... Nb4 {[%clk 0:02:31.5]} 19. Nf4 {[%clk 0:02:01.1]} 19... Qb6
{[%clk 0:02:00.4]} 20. Bf3 {[%clk 0:01:56]} 20... c4 {[%clk 0:01:51.3]} 21. Rfd1
{[%clk 0:01:39.4]} 21... Rd8 {[%clk 0:01:47.1]} 22. b3 {[%clk 0:01:29.2]} 22...
Rac8 {[%clk 0:01:30.9]} 23. bxc4 {[%clk 0:01:22.3]} 23... dxc4 {[%clk
0:01:31.8]} 24. Rxd8+ {[%clk 0:01:22]} 24... Qxd8 {[%clk 0:01:12.5]} 25. h3
{[%clk 0:01:10.6]} 25... Qd2 {[%clk 0:00:52.7]} 26. Rd1 {[%clk 0:01:10.5]} 26...
Qxa2 {[%clk 0:00:49.6]} 27. Qc3 {[%clk 0:01:10.4]} 27... Qc2 {[%clk 0:00:24.6]}
28. Qe5 {[%clk 0:01:05.4]} 28... Qf5 {[%clk 0:00:24.3]} 29. Qd6 {[%clk
0:01:02.6]} 29... c3 {[%clk 0:00:21.6]} 30. Bg4 {[%clk 0:00:53.6]} 30... Qc5
{[%clk 0:00:11.8]} 31. Qxc5 {[%clk 0:00:20.1]} 31... Rxc5 {[%clk 0:00:12.7]} 32.
Nxe6 {[%clk 0:00:15.6]} 32... fxe6 {[%clk 0:00:13.1]} 33. Bxe6+ {[%clk
0:00:15.3]} 33... Kf8 {[%clk 0:00:13.7]} 34. Bb3 {[%clk 0:00:15]} 34... c2
{[%clk 0:00:12.8]} 35. Bxc2 {[%clk 0:00:14.6]} 35... Rxc2 {[%clk 0:00:12.9]} 36.
Rd8+ {[%clk 0:00:15.4]} 36... Ke7 {[%clk 0:00:12.5]} 37. Ra8 {[%clk 0:00:16.2]}
37... Ra2 {[%clk 0:00:13.2]} 38. g4 {[%clk 0:00:15.2]} 38... Kf6 {[%clk
0:00:14.1]} 39. Kg2 {[%clk 0:00:15]} 39... Nd3 {[%clk 0:00:14.6]} 40. Kg3 {[%clk
0:00:15.4]} 40... Nxf2 {[%clk 0:00:14.7]} 41. h4 {[%clk 0:00:15.3]} 41... Ne4+
{[%clk 0:00:14.9]} 42. Kf4 {[%clk 0:00:15.6]} 42... Nd6 {[%clk 0:00:15.5]} 43.
Ra6 {[%clk 0:00:15.3]} 43... Ke7 {[%clk 0:00:15.5]} 44. e4 {[%clk 0:00:15.8]}
44... Nf7 {[%clk 0:00:15.9]} 45. e5 {[%clk 0:00:15.8]} 45... g5+ {[%clk
0:00:16]} 46. hxg5 {[%clk 0:00:14.4]} 46... hxg5+ {[%clk 0:00:16.9]} 47. Kf5
{[%clk 0:00:14.7]} 47... Rf2+ {[%clk 0:00:17.2]} 48. Kg6 {[%clk 0:00:14]} 48...
Nxe5+ {[%clk 0:00:16.8]} 49. Kxg5 {[%clk 0:00:14.4]} 49... Nc4 {[%clk
0:00:17.1]} 50. Kg6 {[%clk 0:00:13.9]} 50... Rg2 {[%clk 0:00:16.5]} 51. g5
{[%clk 0:00:14.1]} 51... Kd7 {[%clk 0:00:17.1]} 52. Kf5 {[%clk 0:00:14.3]} 52...
Kc7 {[%clk 0:00:17.6]} 53. g6 {[%clk 0:00:14.6]} 53... Nd6+ {[%clk 0:00:17.9]}
54. Kf6 {[%clk 0:00:13.7]} 54... Rf2+ {[%clk 0:00:17.9]} 55. Ke6 {[%clk
0:00:13.6]} 55... Re2+ {[%clk 0:00:18.1]} 56. Kf6 {[%clk 0:00:14]} 56... Nc4
{[%clk 0:00:18.1]} 57. g7 {[%clk 0:00:13.4]} 57... Rf2+ {[%clk 0:00:19]} 58. Kg6
{[%clk 0:00:12.7]} 58... Rg2+ {[%clk 0:00:19.5]} 59. Kf6 {[%clk 0:00:12.2]}
59... Rf2+ {[%clk 0:00:20]} 60. Kg6 {[%clk 0:00:12.2]} 60... Ne5+ {[%clk
0:00:19.8]} 61. Kg5 {[%clk 0:00:10.6]} 61... Rg2+ {[%clk 0:00:20.2]} 62. Kf6
{[%clk 0:00:11]} 62... Nd7+ {[%clk 0:00:20.7]} 63. Kf7 {[%clk 0:00:10.7]} 63...
Ne5+ {[%clk 0:00:20.7]} 64. Kf6 {[%clk 0:00:10.9]} 64... Nd7+ {[%clk 0:00:20.9]}
65. Kf7 {[%clk 0:00:11.3]} 65... Kb7 {[%clk 0:00:19.6]} 66. Rxa5 {[%clk
0:00:10]} 66... Ne5+ {[%clk 0:00:19.2]} 67. Rxe5 {[%clk 0:00:09]} 67... Kc6
{[%clk 0:00:18.9]} 68. Re6+ {[%clk 0:00:09.5]} 68... Kd7 {[%clk 0:00:19.3]} 69.
Rg6 {[%clk 0:00:09.5]} 69... Rf2+ {[%clk 0:00:19.7]} 70. Rf6 {[%clk 0:00:09.9]}
70... Rg2 {[%clk 0:00:19.9]} 71. g8=Q {[%clk 0:00:10.1]} 1-0

[Event "Early-Titled-Tuesday-Blitz-March-26-2024"]
[Site "Chess.com"]
[Date "2024.03.26"]
[Round "11"]
[White "TimGrutter03"]
[Black "newyorkmouse"]
[Result "1-0"]
[WhiteElo "2582"]
[BlackElo "2689"]
[TimeControl "180+1"]
[EndTime "10:05:58 PDT"]
[Termination "TimGrutter03 won by resignation"]

1. e4 {[%clk 0:03:00.9]} 1... c6 {[%clk 0:02:59.5]} 2. Nf3 {[%clk 0:03:00.9]}
2... d5 {[%clk 0:02:59.8]} 3. exd5 {[%clk 0:03:00.6]} 3... cxd5 {[%clk
0:02:59.6]} 4. Ne5 {[%clk 0:03:01.3]} 4... Nd7 {[%clk 0:02:55.3]} 5. d4 {[%clk
0:02:53.4]} 5... Ngf6 {[%clk 0:02:54.4]} 6. Bb5 {[%clk 0:02:51.8]} 6... a6
{[%clk 0:02:53.7]} 7. Bd3 {[%clk 0:02:51.4]} 7... e6 {[%clk 0:02:52.5]} 8. O-O
{[%clk 0:02:51.4]} 8... Bd6 {[%clk 0:02:49.1]} 9. Qe2 {[%clk 0:02:51]} 9... b5
{[%clk 0:02:46.9]} 10. Bf4 {[%clk 0:02:46.8]} 10... Qc7 {[%clk 0:02:45.2]} 11.
c3 {[%clk 0:02:46.6]} 11... O-O {[%clk 0:02:43.4]} 12. Bg3 {[%clk 0:02:44.4]}
12... Bb7 {[%clk 0:02:41]} 13. Nd2 {[%clk 0:02:44.3]} 13... Nb6 {[%clk 0:02:40]}
14. f4 {[%clk 0:02:38]} 14... Nc4 {[%clk 0:02:36]} 15. Ndxc4 {[%clk 0:02:31.1]}
15... dxc4 {[%clk 0:02:34.7]} 16. Bc2 {[%clk 0:02:31.7]} 16... Rfd8 {[%clk
0:02:31.1]} 17. Rae1 {[%clk 0:02:29.8]} 17... a5 {[%clk 0:02:23]} 18. Bh4 {[%clk
0:02:28.6]} 18... Be7 {[%clk 0:02:21.1]} 19. Nxf7 {[%clk 0:02:15.6]} 19... Kxf7
{[%clk 0:02:16.1]} 20. Qxe6+ {[%clk 0:02:15.6]} 20... Kf8 {[%clk 0:02:16.7]} 21.
Bxf6 {[%clk 0:02:04]} 21... Bxf6 {[%clk 0:02:13.4]} 22. Bxh7 {[%clk 0:02:04]}
22... Qf7 {[%clk 0:02:10.3]} 23. Qg4 {[%clk 0:01:58.5]} 23... Bc8 {[%clk
0:01:41]} 24. f5 {[%clk 0:01:58.4]} 24... Bb7 {[%clk 0:01:32.6]} 25. Bg6 {[%clk
0:01:56.9]} 25... Qd5 {[%clk 0:01:30.5]} 26. Re6 {[%clk 0:01:48.3]} 26... Ra6
{[%clk 0:01:19]} 27. Rfe1 {[%clk 0:01:41.5]} 27... Rxe6 {[%clk 0:01:13.8]} 28.
Rxe6 {[%clk 0:01:42.4]} 28... Bc8 {[%clk 0:01:01.6]} 29. Re2 {[%clk 0:01:33.4]}
29... Bd7 {[%clk 0:00:43.5]} 30. h4 {[%clk 0:01:19.2]} 30... Be8 {[%clk
0:00:39.8]} 31. h5 {[%clk 0:01:16.8]} 31... Bxg6 {[%clk 0:00:36.3]} 32. fxg6
{[%clk 0:00:50.7]} 32... Re8 {[%clk 0:00:26.8]} 33. Rxe8+ {[%clk 0:00:49.9]}
33... Kxe8 {[%clk 0:00:27.7]} 34. h6 {[%clk 0:00:38.5]} 34... gxh6 {[%clk
0:00:24.2]} 35. g7 {[%clk 0:00:39.4]} 35... Qg8 {[%clk 0:00:23.3]} 36. Qh5+
{[%clk 0:00:20]} 36... Ke7 {[%clk 0:00:21.7]} 37. Qc5+ {[%clk 0:00:16]} 37...
Kf7 {[%clk 0:00:21.2]} 38. Qxb5 {[%clk 0:00:16]} 38... Kxg7 {[%clk 0:00:18.8]}
39. Qxa5 {[%clk 0:00:16.3]} 39... Qb8 {[%clk 0:00:17.2]} 40. Qc5 {[%clk
0:00:06.4]} 40... Qxb2 {[%clk 0:00:12.1]} 41. Qxc4 {[%clk 0:00:06.5]} 41... Qc1+
{[%clk 0:00:10.1]} 42. Kf2 {[%clk 0:00:04.9]} 42... Qd2+ {[%clk 0:00:10.1]} 43.
Kf3 {[%clk 0:00:05.3]} 43... Qd1+ {[%clk 0:00:10.4]} 44. Kg3 {[%clk 0:00:03]}
44... Qe1+ {[%clk 0:00:09.3]} 45. Kf3 {[%clk 0:00:03.3]} 45... Qd1+ {[%clk
0:00:06.6]} 46. Kg3 {[%clk 0:00:03.4]} 46... Qd2 {[%clk 0:00:05.1]} 47. Qc7+
{[%clk 0:00:02.2]} 47... Kg6 {[%clk 0:00:05.8]} 48. Qc4 {[%clk 0:00:02.4]} 48...
Qe3+ {[%clk 0:00:05.9]} 49. Kh2 {[%clk 0:00:01.6]} 49... Bg5 {[%clk 0:00:06.6]}
50. Qc6+ {[%clk 0:00:01.5]} 50... Kh5 {[%clk 0:00:07.2]} 51. Qf3+ {[%clk
0:00:01.9]} 51... Qxf3 {[%clk 0:00:07.3]} 52. gxf3 {[%clk 0:00:02.8]} 52... Bd2
{[%clk 0:00:07.7]} 53. c4 {[%clk 0:00:02.9]} 53... Be3 {[%clk 0:00:07.8]} 54. d5
{[%clk 0:00:03.2]} 54... Bc5 {[%clk 0:00:08.6]} 55. a4 {[%clk 0:00:03.4]} 55...
Kg5 {[%clk 0:00:08.3]} 56. a5 {[%clk 0:00:04.1]} 56... Kf5 {[%clk 0:00:08.9]}
57. Kh3 {[%clk 0:00:03.1]} 57... Kf4 {[%clk 0:00:09.2]} 58. Kh4 {[%clk
0:00:02.2]} 58... Kxf3 {[%clk 0:00:09.7]} 59. a6 {[%clk 0:00:01.9]} 59... Ke4
{[%clk 0:00:07.6]} 60. d6 {[%clk 0:00:02.2]} 60... Kd4 {[%clk 0:00:06.6]} 61. d7
{[%clk 0:00:02.5]} 61... Kxc4 {[%clk 0:00:07.5]} 62. d8=Q {[%clk 0:00:01.3]}
62... Kb5 {[%clk 0:00:08.4]} 63. Qd7+ {[%clk 0:00:01.9]} 63... Kxa6 {[%clk
0:00:08.7]} 64. Qe6+ {[%clk 0:00:02.8]} 64... Kb5 {[%clk 0:00:09]} 65. Kh5
{[%clk 0:00:03.4]} 65... Bb4 {[%clk 0:00:08.1]} 66. Kxh6 {[%clk 0:00:03.5]}
66... Kc5 {[%clk 0:00:08.5]} 67. Kg5 {[%clk 0:00:04.3]} 67... Kb5 {[%clk
0:00:09.4]} 68. Kf5 {[%clk 0:00:05.2]} 68... Bc5 {[%clk 0:00:10.3]} 69. Ke4
{[%clk 0:00:05.9]} 69... Kb4 {[%clk 0:00:10.7]} 70. Kd5 {[%clk 0:00:06.4]} 70...
Kb5 {[%clk 0:00:11.2]} 71. Qc6+ {[%clk 0:00:06.5]} 1-0

[Event "Early-Titled-Tuesday-Blitz-March-26-2024"]
[Site "Chess.com"]
[Date "2024.03.26"]
[Round "11"]
[White "BilicVladimir"]
[Black "theoneandonlydaaevik"]
[Result "0-1"]
[WhiteElo "2665"]
[BlackElo "2563"]
[TimeControl "180+1"]
[EndTime "10:05:58 PDT"]
[Termination "theoneandonlydaaevik won on time"]

1. e4 {[%clk 0:03:00.9]} 1... c5 {[%clk 0:02:56.6]} 2. Nf3 {[%clk 0:03:01.4]}
2... e6 {[%clk 0:02:56.7]} 3. b3 {[%clk 0:03:00.5]} 3... b6 {[%clk 0:02:56.1]}
4. Bb2 {[%clk 0:02:58.6]} 4... Bb7 {[%clk 0:02:56.5]} 5. d3 {[%clk 0:02:59.2]}
5... Nc6 {[%clk 0:02:51.7]} 6. g3 {[%clk 0:02:59.4]} 6... Qc7 {[%clk 0:02:51.4]}
7. Bg2 {[%clk 0:02:59.6]} 7... Nf6 {[%clk 0:02:50.7]} 8. O-O {[%clk 0:02:59.6]}
8... d6 {[%clk 0:02:46.3]} 9. Nbd2 {[%clk 0:03:00.5]} 9... Be7 {[%clk
0:02:46.7]} 10. Nc4 {[%clk 0:03:00.1]} 10... O-O {[%clk 0:02:46.6]} 11. Re1
{[%clk 0:02:59.5]} 11... b5 {[%clk 0:02:45.4]} 12. Nxd6 {[%clk 0:02:56.9]} 12...
Bxd6 {[%clk 0:02:37.6]} 13. e5 {[%clk 0:02:57]} 13... Nxe5 {[%clk 0:02:34.5]}
14. Nxe5 {[%clk 0:02:57]} 14... Bxg2 {[%clk 0:02:32.9]} 15. Kxg2 {[%clk
0:02:57.9]} 15... Rfd8 {[%clk 0:02:24.7]} 16. Qf3 {[%clk 0:02:52.5]} 16... Rac8
{[%clk 0:02:19.9]} 17. a4 {[%clk 0:02:46.7]} 17... b4 {[%clk 0:02:11.3]} 18. Nc4
{[%clk 0:02:45.2]} 18... Be7 {[%clk 0:02:11.3]} 19. Bxf6 {[%clk 0:02:43.7]}
19... Bxf6 {[%clk 0:02:11.4]} 20. Rad1 {[%clk 0:02:43.5]} 20... Qc6 {[%clk
0:02:09.1]} 21. Re4 {[%clk 0:02:39.8]} 21... Rd4 {[%clk 0:01:56.1]} 22. Rxd4
{[%clk 0:02:36.7]} 22... Qxf3+ {[%clk 0:01:53.6]} 23. Kxf3 {[%clk 0:02:36.3]}
23... Bxd4 {[%clk 0:01:54.5]} 24. Ke2 {[%clk 0:02:34.9]} 24... f6 {[%clk
0:01:54.3]} 25. f4 {[%clk 0:02:35]} 25... Rd8 {[%clk 0:01:53.8]} 26. Kf3 {[%clk
0:02:35]} 26... Kf7 {[%clk 0:01:54.4]} 27. Re1 {[%clk 0:02:34]} 27... g6 {[%clk
0:01:50.6]} 28. g4 {[%clk 0:02:33.5]} 28... Rd5 {[%clk 0:01:48.4]} 29. h4 {[%clk
0:02:30.9]} 29... h5 {[%clk 0:01:38.4]} 30. g5 {[%clk 0:02:29.9]} 30... fxg5
{[%clk 0:01:27.8]} 31. hxg5 {[%clk 0:02:25.4]} 31... Ke7 {[%clk 0:01:27.3]} 32.
Ke4 {[%clk 0:02:17.7]} 32... Kd7 {[%clk 0:01:24.3]} 33. Rf1 {[%clk 0:02:11.8]}
33... Rf5 {[%clk 0:01:24.4]} 34. Rf3 {[%clk 0:02:03.8]} 34... Ke7 {[%clk
0:01:03]} 35. Rh3 {[%clk 0:01:58.2]} 35... Kd7 {[%clk 0:01:02.6]} 36. Rf3 {[%clk
0:01:50.9]} 36... e5 {[%clk 0:00:47.4]} 37. fxe5 {[%clk 0:01:44.7]} 37... Rxf3
{[%clk 0:00:47]} 38. Kxf3 {[%clk 0:01:44.5]} 38... Ke6 {[%clk 0:00:47.9]} 39.
Ke4 {[%clk 0:01:43.7]} 39... h4 {[%clk 0:00:47.4]} 40. Na5 {[%clk 0:01:18.6]}
40... h3 {[%clk 0:00:43.8]} 41. Kf3 {[%clk 0:01:18.5]} 41... Bxe5 {[%clk
0:00:44.1]} 42. Nc6 {[%clk 0:01:16.7]} 42... a6 {[%clk 0:00:34.8]} 43. a5 {[%clk
0:01:05.3]} 43... Bc7 {[%clk 0:00:32.8]} 44. d4 {[%clk 0:00:59.9]} 44... Kd7
{[%clk 0:00:31]} 45. d5 {[%clk 0:00:27.4]} 45... Kd6 {[%clk 0:00:30.3]} 46. Kf2
{[%clk 0:00:25]} 46... Kxd5 {[%clk 0:00:29.6]} 47. Ne7+ {[%clk 0:00:24.4]} 47...
Ke6 {[%clk 0:00:26.7]} 48. Nxg6 {[%clk 0:00:24.2]} 48... Kf5 {[%clk 0:00:21.1]}
49. Nf8 {[%clk 0:00:20.9]} 49... Bd6 {[%clk 0:00:15.3]} 50. Nd7 {[%clk
0:00:10.1]} 50... Kxg5 {[%clk 0:00:15.3]} 51. Nb6 {[%clk 0:00:10]} 51... Kg4
{[%clk 0:00:10]} 52. Nd5 {[%clk 0:00:09.3]} 52... Be5 {[%clk 0:00:04.8]} 53. Ne7
{[%clk 0:00:03.9]} 53... Bd4+ {[%clk 0:00:04.7]} 54. Kf1 {[%clk 0:00:04]} 54...
h2 {[%clk 0:00:05.2]} 55. Kg2 {[%clk 0:00:03.3]} 55... Be5 {[%clk 0:00:05.8]}
56. Nc6 {[%clk 0:00:02.3]} 56... Bc7 {[%clk 0:00:05.5]} 57. Ne7 {[%clk 0:00:01]}
57... Kg5 {[%clk 0:00:03.6]} 0-1

[Event "Early-Titled-Tuesday-Blitz-March-26-2024"]
[Site "Chess.com"]
[Date "2024.03.26"]
[Round "11"]
[White "Incognizance"]
[Black "BestestBP"]
[Result "0-1"]
[WhiteElo "1914"]
[BlackElo "2216"]
[TimeControl "180+1"]
[EndTime "10:06:04 PDT"]
[Termination "BestestBP won by checkmate"]

1. d4 {[%clk 0:03:00.9]} 1... Nf6 {[%clk 0:02:59.5]} 2. c4 {[%clk 0:03:01.2]}
2... d6 {[%clk 0:02:56.4]} 3. Nc3 {[%clk 0:03:00.6]} 3... g6 {[%clk 0:02:56.3]}
4. e4 {[%clk 0:03:00.4]} 4... Nbd7 {[%clk 0:02:54.3]} 5. h3 {[%clk 0:02:59.7]}
5... Bg7 {[%clk 0:02:54.2]} 6. Be3 {[%clk 0:03:00]} 6... O-O {[%clk 0:02:53.8]}
7. Nf3 {[%clk 0:02:55.4]} 7... e5 {[%clk 0:02:53.4]} 8. d5 {[%clk 0:02:55.4]}
8... Ne8 {[%clk 0:02:49.3]} 9. g4 {[%clk 0:02:52.1]} 9... f5 {[%clk 0:02:47]}
10. gxf5 {[%clk 0:02:52.1]} 10... gxf5 {[%clk 0:02:47]} 11. exf5 {[%clk
0:02:52.1]} 11... Rxf5 {[%clk 0:02:46.7]} 12. Bd3 {[%clk 0:02:51.3]} 12... Rf8
{[%clk 0:02:41]} 13. Bxh7+ {[%clk 0:02:32.3]} 13... Kxh7 {[%clk 0:02:36.3]} 14.
Ng5+ {[%clk 0:02:32.4]} 14... Kg8 {[%clk 0:02:36.4]} 15. Qh5 {[%clk 0:02:31.7]}
15... Ndf6 {[%clk 0:02:04.4]} 16. Qg6 {[%clk 0:02:25.2]} 16... Qd7 {[%clk
0:01:53.8]} 17. h4 {[%clk 0:02:07.1]} 17... Qf5 {[%clk 0:01:50.1]} 18. Qxf5
{[%clk 0:01:47.9]} 18... Bxf5 {[%clk 0:01:51]} 19. O-O-O {[%clk 0:01:43.2]}
19... Nh7 {[%clk 0:01:46.1]} 20. Nge4 {[%clk 0:01:34.2]} 20... Nef6 {[%clk
0:01:38.9]} 21. Nxf6+ {[%clk 0:01:31.4]} 21... Nxf6 {[%clk 0:01:31.7]} 22. Rhg1
{[%clk 0:01:29.3]} 22... Kh7 {[%clk 0:01:27.9]} 23. Rg5 {[%clk 0:01:23.8]} 23...
Bd7 {[%clk 0:01:01.4]} 24. Rdg1 {[%clk 0:01:23.5]} 24... Bh6 {[%clk 0:00:55.5]}
25. Rg6 {[%clk 0:01:12.2]} 25... Bxe3+ {[%clk 0:00:48.2]} 26. fxe3 {[%clk
0:01:13.1]} 26... Rg8 {[%clk 0:00:45.9]} 27. R6g2 {[%clk 0:01:04.2]} 27... Rxg2
{[%clk 0:00:44.7]} 28. Rxg2 {[%clk 0:01:05.1]} 28... Rg8 {[%clk 0:00:44.8]} 29.
Rf2 {[%clk 0:01:04.5]} 29... Ng4 {[%clk 0:00:33.5]} 30. Rf7+ {[%clk 0:01:03.1]}
30... Rg7 {[%clk 0:00:33.6]} 31. Rf8 {[%clk 0:00:57.3]} 31... Nxe3 {[%clk
0:00:27.3]} 32. Rb8 {[%clk 0:00:56.5]} 32... b6 {[%clk 0:00:25.2]} 33. b3 {[%clk
0:00:55.1]} 33... a5 {[%clk 0:00:24.3]} 34. Rb7 {[%clk 0:00:55.1]} 34... Be8
{[%clk 0:00:22.2]} 35. Rb8 {[%clk 0:00:54.2]} 35... Re7 {[%clk 0:00:12.6]} 36.
Ne4 {[%clk 0:00:53.5]} 36... Ng4 {[%clk 0:00:11.5]} 37. Ng5+ {[%clk 0:00:50.1]}
37... Kg6 {[%clk 0:00:11.8]} 38. Ne6 {[%clk 0:00:48.2]} 38... Bd7 {[%clk
0:00:12.2]} 39. Rg8+ {[%clk 0:00:36.2]} 39... Kf5 {[%clk 0:00:11.4]} 40. Rg5+
{[%clk 0:00:27.3]} 40... Kf6 {[%clk 0:00:08.5]} 41. Rxg4 {[%clk 0:00:24.5]}
41... Bxe6 {[%clk 0:00:08.9]} 42. dxe6 {[%clk 0:00:24.8]} 42... Rxe6 {[%clk
0:00:08.7]} 43. h5 {[%clk 0:00:20.4]} 43... Re7 {[%clk 0:00:08.3]} 44. Rg6+
{[%clk 0:00:17.9]} 44... Kf5 {[%clk 0:00:08.5]} 45. Rg8 {[%clk 0:00:17.8]} 45...
Rh7 {[%clk 0:00:08.4]} 46. Rc8 {[%clk 0:00:18.4]} 46... e4 {[%clk 0:00:06.3]}
47. Kd2 {[%clk 0:00:16.5]} 47... Ke5 {[%clk 0:00:06.8]} 48. Ke3 {[%clk
0:00:15.1]} 48... Rxh5 {[%clk 0:00:07.5]} 49. Rxc7 {[%clk 0:00:14.1]} 49... Rh3+
{[%clk 0:00:07.4]} 50. Kd2 {[%clk 0:00:14.6]} 50... Kd4 {[%clk 0:00:07.3]} 51.
Rc6 {[%clk 0:00:13]} 51... Rh2+ {[%clk 0:00:07.4]} 52. Kc1 {[%clk 0:00:13.4]}
52... Kc3 {[%clk 0:00:03.5]} 53. Kd1 {[%clk 0:00:10.4]} 53... e3 {[%clk
0:00:04]} 54. Ke1 {[%clk 0:00:09.7]} 54... Rxa2 {[%clk 0:00:03.6]} 55. Rxd6
{[%clk 0:00:08.7]} 55... Kxb3 {[%clk 0:00:04.2]} 56. Re6 {[%clk 0:00:06.2]}
56... e2 {[%clk 0:00:01.8]} 57. c5 {[%clk 0:00:05.4]} 57... bxc5 {[%clk
0:00:01.9]} 58. Rb6+ {[%clk 0:00:04.3]} 58... Kc4 {[%clk 0:00:02.2]} 59. Rh6
{[%clk 0:00:03.4]} 59... Rb2 {[%clk 0:00:02.4]} 60. Rh4+ {[%clk 0:00:04.3]}
60... Kb5 {[%clk 0:00:02.5]} 61. Rh3 {[%clk 0:00:04.9]} 61... a4 {[%clk
0:00:02.8]} 62. Rh6 {[%clk 0:00:05.8]} 62... a3 {[%clk 0:00:03.3]} 63. Rh8
{[%clk 0:00:06.7]} 63... Kc4 {[%clk 0:00:03.7]} 64. Rb8 {[%clk 0:00:07.6]} 64...
a2 {[%clk 0:00:04]} 65. Rxb2 {[%clk 0:00:08.3]} 65... a1=Q+ {[%clk 0:00:04.6]}
66. Rb1 {[%clk 0:00:07.9]} 66... Qxb1+ {[%clk 0:00:05.2]} 67. Kf2 {[%clk
0:00:08.7]} 67... e1=Q+ {[%clk 0:00:04.2]} 68. Kg2 {[%clk 0:00:08.8]} 68... Qg6+
{[%clk 0:00:04.6]} 69. Kh3 {[%clk 0:00:09.3]} 69... Qh1# {[%clk 0:00:04.3]} 0-1

[Event "Early-Titled-Tuesday-Blitz-March-26-2024"]
[Site "Chess.com"]
[Date "2024.03.26"]
[Round "11"]
[White "DrVelja"]
[Black "Gabrielian_Artur"]
[Result "1-0"]
[WhiteElo "3000"]
[BlackElo "2818"]
[TimeControl "180+1"]
[EndTime "10:06:09 PDT"]
[Termination "DrVelja won on time"]

1. e4 {[%clk 0:03:00.9]} 1... e5 {[%clk 0:02:58.6]} 2. Nf3 {[%clk 0:03:01.4]}
2... Nc6 {[%clk 0:02:58.9]} 3. Bb5 {[%clk 0:03:02.1]} 3... Nf6 {[%clk 0:02:59]}
4. d3 {[%clk 0:02:58.2]} 4... Bc5 {[%clk 0:02:58.3]} 5. c3 {[%clk 0:02:57.6]}
5... O-O {[%clk 0:02:56.1]} 6. O-O {[%clk 0:02:57.9]} 6... d6 {[%clk 0:02:55.9]}
7. h3 {[%clk 0:02:57.2]} 7... h6 {[%clk 0:02:55.6]} 8. Re1 {[%clk 0:02:57.2]}
8... Bb6 {[%clk 0:02:55.2]} 9. Nbd2 {[%clk 0:02:55.5]} 9... Ne7 {[%clk
0:02:54.2]} 10. Nf1 {[%clk 0:02:54.8]} 10... Ng6 {[%clk 0:02:54.3]} 11. Ng3
{[%clk 0:02:53.6]} 11... c6 {[%clk 0:02:54.4]} 12. Ba4 {[%clk 0:02:53.9]} 12...
Re8 {[%clk 0:02:51.6]} 13. d4 {[%clk 0:02:52.4]} 13... Be6 {[%clk 0:02:38]} 14.
Bc2 {[%clk 0:02:47.5]} 14... Qc7 {[%clk 0:02:28.2]} 15. Be3 {[%clk 0:02:44.9]}
15... Rad8 {[%clk 0:02:27.5]} 16. Qc1 {[%clk 0:02:33.3]} 16... Kh7 {[%clk
0:01:39.8]} 17. a4 {[%clk 0:02:03.4]} 17... exd4 {[%clk 0:01:25.1]} 18. Nxd4
{[%clk 0:01:49.2]} 18... d5 {[%clk 0:01:25.3]} 19. e5 {[%clk 0:01:30.1]} 19...
Ne4 {[%clk 0:01:17.6]} 20. Nxe4 {[%clk 0:01:27.8]} 20... dxe4 {[%clk 0:01:17.8]}
21. Bxe4 {[%clk 0:01:28.7]} 21... Bd5 {[%clk 0:01:05.5]} 22. Bxd5 {[%clk
0:00:59.5]} 22... Rxd5 {[%clk 0:01:05.3]} 23. f4 {[%clk 0:01:00.2]} 23... Qd7
{[%clk 0:01:05.3]} 24. Qc2 {[%clk 0:00:58]} 24... Kg8 {[%clk 0:01:04.9]} 25. e6
{[%clk 0:00:53]} 25... Qc7 {[%clk 0:00:46.8]} 26. f5 {[%clk 0:00:42.5]} 26...
Nh4 {[%clk 0:00:46.5]} 27. f6 {[%clk 0:00:27.7]} 27... gxf6 {[%clk 0:00:35.1]}
28. Qf2 {[%clk 0:00:26.1]} 28... Ng6 {[%clk 0:00:22.9]} 29. exf7+ {[%clk
0:00:14.3]} 29... Qxf7 {[%clk 0:00:22.7]} 30. Nf5 {[%clk 0:00:13.4]} 30... Rxf5
{[%clk 0:00:21.1]} 31. Qxf5 {[%clk 0:00:11.6]} 31... Rxe3 {[%clk 0:00:20.9]} 32.
Kh1 {[%clk 0:00:11.8]} 32... Ne5 {[%clk 0:00:18.4]} 33. a5 {[%clk 0:00:10.9]}
33... Rxe1+ {[%clk 0:00:16.7]} 34. Rxe1 {[%clk 0:00:11.8]} 34... Bxa5 {[%clk
0:00:14.5]} 35. Rf1 {[%clk 0:00:12.6]} 35... Kg7 {[%clk 0:00:13.1]} 36. Rf4
{[%clk 0:00:10.2]} 36... Bc7 {[%clk 0:00:11.8]} 37. Rd4 {[%clk 0:00:08.2]} 37...
h5 {[%clk 0:00:10]} 38. Rh4 {[%clk 0:00:05.5]} 38... Qg6 {[%clk 0:00:08.2]} 39.
Rxh5 {[%clk 0:00:05.5]} 39... Qxf5 {[%clk 0:00:08.4]} 40. Rxf5 {[%clk
0:00:06.4]} 40... b5 {[%clk 0:00:08.6]} 41. g4 {[%clk 0:00:05.6]} 41... Kg6
{[%clk 0:00:09.1]} 42. Kg2 {[%clk 0:00:05.4]} 42... a5 {[%clk 0:00:09.5]} 43. b3
{[%clk 0:00:04.7]} 43... a4 {[%clk 0:00:09.6]} 44. bxa4 {[%clk 0:00:05.6]} 44...
bxa4 {[%clk 0:00:09.7]} 45. Rf4 {[%clk 0:00:06.3]} 45... a3 {[%clk 0:00:09]} 46.
Ra4 {[%clk 0:00:07.1]} 46... Bd6 {[%clk 0:00:09.6]} 47. Kf2 {[%clk 0:00:07.9]}
47... Nd3+ {[%clk 0:00:09.4]} 48. Ke3 {[%clk 0:00:08.6]} 48... Nb2 {[%clk
0:00:06.3]} 49. Ra6 {[%clk 0:00:09.3]} 49... Bc5+ {[%clk 0:00:05]} 50. Kd2
{[%clk 0:00:09.3]} 50... Kg5 {[%clk 0:00:04.6]} 51. Kc2 {[%clk 0:00:09.1]} 51...
Nc4 {[%clk 0:00:04.9]} 52. Kb3 {[%clk 0:00:08.9]} 52... Nd2+ {[%clk 0:00:05.2]}
53. Ka2 {[%clk 0:00:05.8]} 53... Ne4 {[%clk 0:00:05.1]} 54. Rxc6 {[%clk
0:00:06.2]} 54... Nxc3+ {[%clk 0:00:04.7]} 55. Kb3 {[%clk 0:00:06.7]} 55... Ne4
{[%clk 0:00:05.1]} 56. Re6 {[%clk 0:00:03.8]} 56... Kf4 {[%clk 0:00:04.3]} 57.
h4 {[%clk 0:00:03]} 57... Nd2+ {[%clk 0:00:02.3]} 58. Ka2 {[%clk 0:00:03.7]} 1-0